Cogmind - Beta 12 @@@ ROGUE MODE // 2024.01.03 @ 20:44:59 Player: Krieg Result: Self-destructed Performance ------------- Evolutions (2) 1000 Regions Visited (5) 1000 Robots Destroyed (9) 45 Value Destroyed (150) 150 Prototype IDs (23) 460 Alien Tech Used (0) 0 Bonus (300) 300 TOTAL SCORE: 2955 Bonus ------- Aligned with FarCom 300 Cogmind --------- Core Integrity 471/550 Matter 295/300 Energy 85/100 System Corruption 0% Temperature Cool (0) Movement Core (250) Ox4 Location -8/Materials Parts ------- > --- POWER (1) -------- (None) > --- PROPULSION (3) --- (None) > --- UTILITY (5) ------ Medium Storage Unit > --- WEAPON (2) ------- Light Assault Rifle Longsword +1 > --- INVENTORY (10) --- Light Ion Engine Light Assault Rifle Light Assault Rifle Light Assault Rifle Light Assault Rifle High-powered Shotgun Rocket Launcher Peak State ------------ > --- POWER ------------ Ion Engine > --- PROPULSION ------- Light Treads Light Treads Wheel > --- UTILITY ---------- Medium Storage Unit > --- WEAPON ----------- Light Assault Rifle Longsword +1 > --- INVENTORY -------- Light Ion Engine Compact Wheel Light Assault Rifle Light Assault Rifle Light Assault Rifle Light Assault Rifle High-powered Shotgun Rocket Launcher [Rating: 15] Favorites ----------- Power Ion Engine Engine Ion Engine Propulsion Light Treads Treads Light Treads Wheel Wheel Utility Medium Storage Unit Storage Medium Storage Unit Weapon Light Assault Rifle Ballistic Gun Light Assault Rifle Slashing Weapon Longsword +1 Build | -11 -10 -10 -10 -9 -8 ------- Run | Jun Mat Min Exi Min Mat Slots Evolved 4 | . . . . . 4 Power . | . . . . . . Propulsion 1 | . . . . . 1 Utility 3 | . . . . . 3 Weapon . | . . . . . . Parts Attached 11 | 7 1 . 1 . 2 Power 1 | 1 . . . . . Engine 1 | 1 . . . . . Core . | . . . . . . Reactor . | . . . . . . Propulsion 5 | 3 . . . . 2 Treads 2 | 2 . . . . . Leg . | . . . . . . Wheel 3 | 1 . . . . 2 Hover . | . . . . . . Flight . | . . . . . . Utility 2 | 1 1 . . . . Device . | . . . . . . Storage 2 | 1 1 . . . . Processor . | . . . . . . Hackware . | . . . . . . Protection . | . . . . . . Artifact . | . . . . . . Weapon 3 | 2 . . 1 . . Energy Gun . | . . . . . . Energy Cannon . | . . . . . . Ballistic Gun 2 | 2 . . . . . Ballistic Cannon . | . . . . . . Launcher . | . . . . . . Special Weapon . | . . . . . . Impact Weapon . | . . . . . . Slashing Weapon 1 | . . . 1 . . Piercing Weapon . | . . . . . . Special Melee Weapon . | . . . . . . Unidentified Prototypes . | . . . . . . Parts Lost 5 | . . . . . 5 Power 1 | . . . . . 1 Propulsion 4 | . . . . . 4 Utility . | . . . . . . Weapon . | . . . . . . Highest Loss Streak 5 | . . . . . 5 To Critical Strikes . | . . . . . . Average Slot Usage (%) 81 | . 85 85 84 85 54 Engine 13 | . 14 14 14 14 7 Treads 27 | . 28 28 28 28 18 Storage 13 | . 14 14 14 14 9 Ballistic Gun 22 | . 28 28 19 14 9 Slashing Weapon 4 | . . . 8 14 9 Naked Turns . | . . . . . . Heaviest Build 19 | 12 17 17 19 19 19 Greatest Support 40 | 40 40 40 40 40 40 Greatest Overweight (x) 1 | . . . . . 1 Average Overweight (x) . | . . . . . . Largest Inventory Capacity 10 | 8 10 10 10 10 10 Average Capacity 9 | 7 9 10 10 10 10 Most Carried 9 | 4 7 8 8 8 9 Average Carried 7 | 2 4 7 8 8 8 Final Capacity 10 | 8 10 10 10 10 10 Final Carried 8 | 4 7 8 8 8 7 Class Distribution -------------------- 100% | Mutant Dominant Class ---------------- Mutant | -10/Materials Mutant | -10/Mines Mutant | -10/Exiles Mutant | -9/Mines Mutant | -8/Materials Resources | -11 -10 -10 -10 -9 -8 ----------- Run | Jun Mat Min Exi Min Mat Matter Collected 356 | 184 32 130 . 10 . Remotely . | . . . . . . Salvage Created 244 | . 148 39 . . 57 Parts 14 | . 13 . . . 1 Haulers Intercepted . | . . . . . . Recyclers Shooed . | . . . . . . Parts Field Recycled . | . . . . . . Retrieved Matter . | . . . . . . Parts Self-Destructed . | . . . . . . Prevented . | . . . . . . Kills | -11 -10 -10 -10 -9 -8 ------- Run | Jun Mat Min Exi Min Mat Combat Hostiles Destroyed 10 | . 7 2 . . 1 Melee 1 | . . . . . 1 Guns 9 | . 7 2 . . . Classes Destroyed 5 | . 3 1 . . 1 Worker 1 | . 1 . . . . Swarmer 6 | . 6 . . . . Grunt 1 | . 1 . . . . Hunter 1 | . . . . . 1 Assembled 2 | . . 2 . . . Best Kill Streak 4 | . 4 2 . . 1 Combat Bots Only 4 | . 4 2 . . 1 Max Kills in Single Turn 1 | . 1 1 . . 1 Gunslinging . | . . . . . . Exploded . | . . . . . . Melee 1 | . . . . . 1 Uniques/NPCs Destroyed . | . . . . . . Combat | -11 -10 -10 -10 -9 -8 -------- Run | Jun Mat Min Exi Min Mat Damage Taken 719 | . 289 50 . . 380 Core 130 | . 24 27 . . 79 Absorbed by Shields . | . . . . . . Core Remaining (%) 89 | 100 . . . 79 . Volleys Fired 33 | . 27 6 . . . Largest 2 | . 2 2 . . . Hottest 40 | . 40 40 . . . Shots Fired 66 | . 54 12 . . . Gun 66 | . 54 12 . . . Cannon . | . . . . . . Launcher . | . . . . . . Special . | . . . . . . Kinetic 66 | . 54 12 . . . Thermal . | . . . . . . Explosive . | . . . . . . Electromagnetic . | . . . . . . Robot Hit Streak 5 | . 5 4 . . . Robot Miss Streak 4 | . 4 2 . . . Penetration Max . | . . . . . . Secondary Targets . | . . . . . . Shots Hit Robots 39 | . 27 7 . . 5 Core Hits 18 | . 13 4 . . 1 Critical Kills 1 | . . 1 . . . Critical Parts Destroyed . | . . . . . . Critical Strikes 2 | . . 1 . . 1 Destroy 1 | . . 1 . . . Sever 1 | . . . . . 1 Melee Attacks 7 | . . . . . 7 Impact . | . . . . . . Slashing 7 | . . . . . 7 Piercing . | . . . . . . Sneak Attacks . | . . . . . . Combat Hostiles . | . . . . . . Follow-up Attacks . | . . . . . . Damage Inflicted 501 | . 207 55 . . 239 Guns 262 | . 207 55 . . . Cannons . | . . . . . . Explosions . | . . . . . . Melee 239 | . . . . . 239 Ramming . | . . . . . . Kinetic 262 | . 207 55 . . . Thermal . | . . . . . . Explosive . | . . . . . . Electromagnetic . | . . . . . . Impact . | . . . . . . Slashing 239 | . . . . . 239 Piercing . | . . . . . . Highest Corruption . | . . . . . . Average Corruption . | . . . . . . Corruption Purged . | . . . . . . Corruption Blocked . | . . . . . . Overload Shots . | . . . . . . Overflow Damage . | . . . . . . Projectiles . | . . . . . . Explosions . | . . . . . . Melee . | . . . . . . Knockbacks . | . . . . . . Impact . | . . . . . . Kinetic . | . . . . . . Secondary . | . . . . . . Self-Inflicted Damage . | . . . . . . Shots . | . . . . . . Rammed . | . . . . . . Targets Rammed . | . . . . . . Kicked . | . . . . . . Crushed . | . . . . . . Highest Temperature 20 | . . 20 . . . Average Temperature 20 | . . 20 . . . Received Heat Transfer 166 | . . 40 . . 126 Siege Activations . | . . . . . . Robots Corrupted . | . . . . . . Combat Hostiles . | . . . . . . Parts Fried . | . . . . . . Impact Corruptions . | . . . . . . Robots Melted . | . . . . . . Combat Hostiles . | . . . . . . Parts Melted . | . . . . . . Heat Transferred . | . . . . . . Parts Sabotaged . | . . . . . . Parts Stolen . | . . . . . . Parts Stripped . | . . . . . . Power Chain Reactions . | . . . . . . Missiles Intercepted . | . . . . . . Alert | -11 -10 -10 -10 -9 -8 ------- Run | Jun Mat Min Exi Min Mat Peak Influence 209 | . 209 81 . . 35 Initial 81 | . . 81 . . . Average 51 | . 77 65 . . 9 Maximum Alert Level 1 | . 1 . . . . Low Security (%) 96 | 100 89 100 . 100 100 Level 1 3 | . 10 . . . . Level 2 . | . . . . . . Level 3 . | . . . . . . Level 4 . | . . . . . . Level 5 . | . . . . . . High Security . | . . . . . . Max Security . | . . . . . . Squads Dispatched 2 | . 1 . . 1 . Investigation . | . . . . . . Extermination . | . . . . . . Reinforcement 1 | . 1 . . . . Assault 1 | . . . . 1 . Garrison . | . . . . . . Intercept . | . . . . . . Searches Triggered . | . . . . . . Construction Impeded . | . . . . . . Haulers Reinforced . | . . . . . . Active Scanning Responses . | . . . . . . Cargo Convoy Interrupts . | . . . . . . Stealth | -11 -10 -10 -10 -9 -8 --------- Run | Jun Mat Min Exi Min Mat Distress Signals 1 | . . . . . 1 Communications Jammed . | . . . . . . Distress Signals . | . . . . . . Times Spotted 20 | . 9 2 . . 9 Peak Tracking Total 8 | . 3 1 . . 8 Tactical Retreats 1 | . . . . . 1 Traps | -11 -10 -10 -10 -9 -8 ------- Run | Jun Mat Min Exi Min Mat Traps Triggered . | . . . . . . Indirectly . | . . . . . . Trap Hack Attempts . | . . . . . . Triggered . | . . . . . . Disarmed . | . . . . . . Reprogrammed . | . . . . . . Reused . | . . . . . . Traps Extracted . | . . . . . . Installed . | . . . . . . Triggered . | . . . . . . Machines | -11 -10 -10 -10 -9 -8 ---------- Run | Jun Mat Min Exi Min Mat Machines Disabled . | . . . . . . Max in Single Turn . | . . . . . . Machines Repaired . | . . . . . . Machines Sabotaged . | . . . . . . Overloaded Fab Kills . | . . . . . . Hacking | -11 -10 -10 -10 -9 -8 --------- Run | Jun Mat Min Exi Min Mat Machines Accessed 7 | . 2 . 2 . 3 Terminals 5 | . 2 . . . 3 Fabricators . | . . . . . . Repair Stations . | . . . . . . Recycling Units . | . . . . . . Scanalyzers . | . . . . . . Garrison Access . | . . . . . . Total Hacks 40 | . 6 . 24 . 10 Successful 32 | . 2 . 24 . 6 Failed 8 | . 4 . . . 4 Catastrophic . | . . . . . . Database Lockouts . | . . . . . . Manual 14 | . 6 . 1 . 7 Terminals 16 | . 6 . . . 10 Fabricators . | . . . . . . Repair Stations . | . . . . . . Recycling Units . | . . . . . . Scanalyzers . | . . . . . . Garrison Access . | . . . . . . Terminal Hacks 27 | . . . 24 . 3 Record 23 | . . . 23 . . Branch Access Points 1 | . . . . . 1 Locate Traps 1 | . . . . . 1 Zone Layout 1 | . . . . . 1 EX-Prototype ID Bank 1 | . . . 1 . . Fabricator Hacks . | . . . . . . Repair Station Hacks . | . . . . . . Recycling Unit Hacks . | . . . . . . Scanalyzer . | . . . . . . Garrison Access Hacks . | . . . . . . Unauthorized Hacks 5 | . 2 . . . 3 Terminals 5 | . 2 . . . 3 Botnet 5 | . 2 . . . 3 Fabricators . | . . . . . . Repair Stations . | . . . . . . Recycling Units . | . . . . . . Scanalyzers . | . . . . . . Garrison Access . | . . . . . . Data Cores Recovered . | . . . . . . Used . | . . . . . . Hacking Detections 5 | . 2 . . . 3 Full Trace Events . | . . . . . . Feedback Events . | . . . . . . Feedback Blocked . | . . . . . . Robot Schematics Acquired . | . . . . . . Robots Built . | . . . . . . Authchips . | . . . . . . Time . | . . . . . . Total Robot Build Rating . | . . . . . . Part Schematics Acquired . | . . . . . . Parts Built . | . . . . . . Authchips . | . . . . . . Time . | . . . . . . Total Part Build Rating . | . . . . . . Parts Repaired . | . . . . . . Time . | . . . . . . Parts Recycled . | . . . . . . Recycled Matter . | . . . . . . Retrieved Matter . | . . . . . . Retrieved Components . | . . . . . . Parts Scanalyzed . | . . . . . . Part Schematics Acquired . | . . . . . . Parts Damaged . | . . . . . . Bothacking | -11 -10 -10 -10 -9 -8 ------------ Run | Jun Mat Min Exi Min Mat Used RIF Installer . | . . . . . . Robots Hacked . | . . . . . . Non-combat . | . . . . . . Combat . | . . . . . . Robot Hacks Applied . | . . . . . . Relay Couplers Released . | . . . . . . Fabnet Peak Effective % . | . . . . . . Robots Rewired . | . . . . . . Allies Hacked . | . . . . . . Hacks Repelled . | . . . . . . Allies | -11 -10 -10 -10 -9 -8 -------- Run | Jun Mat Min Exi Min Mat Total Allies 1 | . . . . 1 . Largest Group 1 | . . . . 1 1 Highest-Rated Group 31 | . . . . 31 31 Highest-Rated Ally 31 | . . . . 31 31 Total Orders . | . . . . . . Ally Attacks 10 | . . . . . 10 Total Damage 149 | . . . . . 149 Kills . | . . . . . . Allies Corrupted . | . . . . . . Allies Melted . | . . . . . . Intel | -11 -10 -10 -10 -9 -8 ------- Run | Jun Mat Min Exi Min Mat Robot Analysis Total . | . . . . . . Derelict Logs Recovered 1 | . . 1 . . . Drone Launches . | . . . . . . Drone Recoveries . | . . . . . . Exploration | -11 -10 -10 -10 -9 -8 ------------- Run | Jun Mat Min Exi Min Mat Turns Passed 1795 | 68 377 493 562 122 173 Spaces Moved 956 | 38 128 260 351 76 103 Core 1 | 1 . . . . . Treads 933 | 30 128 260 351 76 88 Legs . | . . . . . . Wheels 22 | 7 . . . . 15 Hover . | . . . . . . Flight . | . . . . . . Fastest Speed 50 | 50 160 160 160 160 95 Average Speed 158 | 146 160 160 160 160 150 Slowest Speed 160 | 160 160 160 160 160 160 Overloaded Moves . | . . . . . . Propulsion Burnouts . | . . . . . . Robots Hopped . | . . . . . . Cave-ins Triggered . | . . . . . . Exploration Rate (%) 30 | 4 31 41 71 22 13 Regions Visited 5 Branch Regions 3 Pre-discovered Areas 1 | . . . 1 . . Known Exits Taken . | . . . . . . Unknown Exits Taken 5 | 1 1 1 1 1 . Scrap Searched 3 | . . 1 . 2 . Spaces Dug 2 | . . . . . 2 Terrain Destroyed 2 | . . . . . 2 Melee 2 | . . . . . 2 Projectile . | . . . . . . AOE . | . . . . . . Terrain Rammed . | . . . . . . Walls Destroyed . | . . . . . . Machines Disabled . | . . . . . . Actions | -11 -10 -10 -10 -9 -8 --------- Run | Jun Mat Min Exi Min Mat Total 1175 | 48 257 328 352 77 113 Wait 162 | . 98 62 . 2 . Move 951 | 37 127 259 350 75 103 Hop . | . . . . . . Pick Up 8 | 3 3 1 . . 1 Fast Attach 9 | 7 1 . 1 . . Attach 2 | . . . . . 2 Detach 1 | 1 . . . . . Swap . | . . . . . . Drop 2 | . 1 . 1 . . Fire 33 | . 27 6 . . . Melee 7 | . . . . . 7 Ram . | . . . . . . Kick . | . . . . . . Crush . | . . . . . . Escape Stasis . | . . . . . . Rewire . | . . . . . . Trap . | . . . . . . Miscellaneous . | . . . . . . Route ------- -11/Junkyard -10/Materials -10/Mines -10/Exiles -9/Mines -8/Materials History --------- Turn | Location | Event 12 | -11/Junkyard | Discovered new exit (range 13) 69 | -11/Junkyard | Entered Materials 307 | -10/Materials | Build established: Mutant 375 | -10/Materials | Discovered new exit (range 14) 446 | -10/Materials | Entered Mines 453 | -10/Mines | Received a Rocket Launcher from a helpful Derelict 500 | -10/Mines | Assembled infested the area 698 | -10/Mines | Learned Materials emergency access door positions 933 | -10/Mines | Deemed a non-threat by the Exiles lab entrance 933 | -10/Mines | Discovered new exit (range 5) 939 | -10/Mines | Entered Exiles 981 | -10/Exiles | Met 8R-AWN 1008 | -10/Exiles | Met EX-HEX 1077 | -10/Exiles | Met EX-BIN 1098 | -10/Exiles | Aligned with FarCom system 1099 | -10/Exiles | Given EX-Vault access code 1138 | -10/Exiles | Opened EX-Vault 1150 | -10/Exiles | Found Longsword +1 1185 | -10/Exiles | Warned to stay clear of 0b10 Research branches 1239 | -10/Exiles | Met EX-DEC 1282 | -10/Exiles | Learned location of Zion (-7) 1452 | -10/Exiles | Discovered new exit (range 14) 1501 | -10/Exiles | Left Exiles lab with Longsword +1 1501 | -10/Exiles | Entered Mines 1602 | -9/Mines | Met a Derelict testing a Signal Generator 1611 | -9/Mines | Discovered new exit (range 8) 1623 | -9/Mines | Entered Materials 1623 | -8/Materials | Accompanied by 1 ally 1623 | -8/Materials | Evolved 4 slots: Propulsion x1, Utility x3 1796 | -8/Materials | Self-destructed Last Messages --------------- Terminal linked with 2 systems. Awaiting botnet instructions. >>Layout(Zone) Retrieving Zone 9X layout... Downloaded map data. >>Traps(Locate) Found 6 traps in 1 array: 6x Alarm Trap Map updated. 01774_ Ion Engine destroyed. 01778_ K-01 Serf collects debris. 01783_ Penetrated by Slug. 01783_ K-01 Serf destroyed. 01786_ Slug penetrates Wall. 01789_ Wheel destroyed. 01791_ H-55 Commando Gauss Rifle severed. 01792_ Lgt. Treads destroyed. 01793_ H-55 Commando destroyed. 01793_ Lgt. Treads destroyed. 01795_ Com. Wheel destroyed. Map ----- +----------------------------------------------------+ | ?????????????????????????????????????????????????? | | ?????????????????????????????????????????????????? | | ?????????????????????????????????????????????????? | | ?????????????????????????????????????????????????? | | ?????????????????????????????????????????????????? | | ?????????????????????????????????????????????????? | | ?????????????????????????????????????????????????? | | ?????????????????????+???????????????????????????? | | ?????????????????????????????????????????????????? | | ?????????????????????+???????????????????????????? | | ???????????????????+?????????????????????????????? | | ?????????????????????????????????????????????????? | | ?????????????????????????????????????????????????? | | ?????????????????????????? #??????????w??????????? | | ???######?????????????????k#?????????????????????? | | ??# #?????????????????Y#?????????????????????? | | ??# #????????????????? #?????????????????????? | | ??# """ #????????????????? #????###??????????????? | | ??# """ #?????????????????w#??? ???????????????? | | ??# """ #?????????????????u#?? ""????????????????? | | ??# #??????????????### ## "?????????????????? | | ??# """ #?????????????? # ??????????????????? | | ??# """ #??????????????? Y ???????????????????? | | ??# """ #??????????????? = #????????????????????? | | ??# #???????????????#[% #????????????????????? | | ??# #???????????????#@ #????????????????????? | | ??#] #######?????????# #????????????????????? | | ?####+### #?????????# #????????????????????? | | ?# #?????????# #????????????????????? | | ?# T #?????????# #????????????????????? | | ?# #?????????# #????????????????????? | | ?######## #?????????# #?????????h??????????? | | ????????## ########???# #????????????????????? | | ?????????# # #???# #????????????????????? | | ?????????# # T #??##%!Y##???????? ??????????? | | ?????????# + #??# =g ####### ????????? | | ?????????# # #??# ^ ????????? | | ?????????# # #??# g ????????? | | ?????????# # #??# ????????? | | ?????????# ########??# b ####### ????????? | | ?????????# ########??## ##???????? ??????????? | | ?????????# # #???#g #????????????????????? | | ?????????# + #???# #????????????????????? | | ?????????# # """#???# #????????????????????? | | ?????????# # """#???# #????????????????????? | | ?????????# # ! """#???# #????????????????????? | | ?????????# # #??## #????????????????????? | | ?????????# ###########" #????????????????????? | | ?????????# ## T "# #????????????????????? | | ?????????# ## """ ## #????????????????????? | +----------------------------------------------------+ Best States ------------- Heat Dissipation 31 Energy Generation 10 Energy Capacity 250 Matter Stores 300 Matter Capacity 300 Sight Range 16 Terrain Scan Density 10 Evasion (%) 41 Recoil Reduction 2 Item Schematics ----------------- None Robot Schematics ------------------ None Fabricated ------------ Nothing Alien Tech Used ----------------- None Achievements -------------- None Challenges ------------ None Game ------ Seed NeutrinoSpikedFlakker Manual? 0 Play Time 00:11:03 Cumulative 18.0 hours Start 2023.03.10 @ 18:23:22 End 2024.01.03 @ 20:44:59 Sessions 3 Manual Loads 0 Difficulty Rogue Special Mode None Game No. 21 Rogue 21 Adventurer 0 Explorer 0 Win Type - Total 0 Types 0/0/0/0/0/0/0/0/0 Lore% 30 Gallery% 32 Achievement% 35 Wizard Run 0 Options --------- ASCII 0 Keyboard 0 Movement Mouse Keybinds 0 Fullscreen 1 Font 12/Smallcaps Map View 83x54 Tactical HUD 1 Map Filters NONE Filters NONE Steam 0 RUN: 12f45762-9317-4c99-bb16-beba8327b998